bitfinex/quotes_ETHUSD_20240817
["timestamp","ask_amount","ask_price","bid_price","bid_amount"]
[1723858487832,3.176,2610.0,2609.8,3.83164]
[1723858488095,0.12667696,2609.9,2609.8,3.83164]
[1723858488284,0.12667696,2609.9,2609.7,3.83173]
[1723858488439,3.176,2610.0,2609.7,3.83173]
[1723858488641,0.12668384,2609.9,2609.6,3.83198]
[1723858488982,0.12668384,2609.9,2609.1,0.683296]
[1723858488983,3.176,2609.7,2609.3,3.8324]
[1723858489180,3.176,2609.7,2609.1,2.483]
[1723858489181,3.176,2609.4,2609.1,3.83259]
[1723858489379,3.176,2609.4,2609.2,3.83251]
[1723858489380,0.12668384,2609.3,2609.2,3.83251]
[1723858489887,0.12668384,2609.3,2609.1,3.83259]
[1723858490076,0.12668384,2609.3,2609.1,7.66525]
[1723858490252,0.12668384,2609.3,2609.2,3.83259]
[1723858490980,0.12668384,2609.3,2609.1,3.83259]
[1723858491686,2.51228384,2609.2,2608.9,3.83294]
[1723858491984,3.30268384,2609.1,2608.9,3.83294]
[1723858492282,0.12668384,2609.0,2608.9,7.66597]
[1723858492640,3.176,2609.1,2609.0,3.83288]
[1723858492844,3.30271181,2609.1,2609.0,3.83288]
[1723858493092,0.12671181,2609.1,2609.0,3.83288]
[1723858495946,0.12671181,2609.1,2609.0,7.66576]
[1723858496256,0.12671181,2609.1,2609.0,8.680906]
[1723858497050,3.176,2609.4,2609.3,3.83244]
[1723858497272,3.30270699,2609.4,2609.3,3.83244]
[1723858497475,3.176,2609.4,2609.3,3.83244]
[1723858497675,3.3027005,2609.4,2609.3,3.83244]
[1723858499311,3.3027005,2609.4,2608.9,6.3187]
[1723858499312,5.6883005,2609.4,2609.1,3.83272]
[1723858499482,0.12670634,2609.3,2609.1,3.83272]
[1723858500297,0.12670634,2609.3,2609.2,3.83259]
[1723858501591,0.7,2609.6,2609.4,3.8322]
[1723858501887,1.44869371,2609.5,2609.4,3.8322]
[1723858508973,1.322,2609.5,2609.4,3.8322]
[1723858509171,1.44869707,2609.5,2609.4,3.8322]
[1723858509711,1.44869677,2609.5,2609.4,3.8322]
[1723858510485,2.2786,2609.4,2609.1,3.83273]
[1723858510688,1.44869677,2609.3,2609.1,3.83273]
[1723858511014,0.12669677,2609.2,2609.1,3.83273]
[1723858511311,0.12669677,2609.2,2609.1,6.83273]
[1723858512011,0.12669677,2609.2,2609.1,14.183035]
[1723858512399,1.322,2609.3,2609.2,7.66518]
[1723858512711,1.44869824,2609.3,2609.2,7.66518]
[1723858513475,1.322,2609.3,2609.2,7.66518]
[1723858513680,1.44869857,2609.3,2609.2,7.66518]
[1723858516978,0.12669857,2609.3,2609.2,12.44196231]
[1723858517178,16.66019002,2610.0,2609.2,12.44196231]
[1723858517179,3.68577682,2610.0,2609.4,2.3073]
[1723858517494,0.7,2610.5,2610.4,3.83083]
[1723858517679,0.7,2610.5,2610.3,3.83088]
[1723858517878,0.12665227,2610.4,2610.3,3.83088]
[1723858519832,0.12665227,2610.4,2610.2,3.83103]
[1723858520138,0.12665227,2610.3,2610.2,3.83103]
[1723858520299,0.12665227,2610.4,2610.2,3.83103]
[1723858520505,0.12665227,2610.3,2610.2,3.83103]
[1723858520726,3.172,2610.5,2610.2,3.83103]
[1723858520727,0.12665227,2610.4,2610.2,3.83103]
[1723858521232,0.12665227,2610.3,2610.2,3.83103]
[1723858522046,0.12665922,2610.3,2610.2,3.83103]
[1723858522215,0.12665922,2610.3,2610.2,7.66205]
[1723858522412,3.172,2610.5,2610.2,3.83102]
[1723858522614,0.1266629,2610.4,2610.2,3.83102]
[1723858523139,0.1266629,2610.4,2610.1,3.83125]
[1723858523140,0.45652919,2610.4,2610.1,3.83125]
[1723858523439,3.172,2610.2,2610.1,3.83125]
[1723858523605,3.2986629,2610.2,2610.1,3.83125]
[1723858524232,3.2986629,2610.2,2609.9,6.83154]
[1723858524434,0.1266629,2610.1,2609.9,3.83154]
[1723858524602,0.1266629,2610.1,2609.9,3.83148]
[1723858524603,3.2986629,2610.1,2609.9,3.83148]
[1723858524809,0.1266629,2610.0,2609.9,3.83148]
[1723858525926,3.172,2610.1,2609.9,3.83148]
[1723858526141,0.12667492,2610.0,2609.9,3.83148]
[1723858527648,0.12667492,2610.0,2609.8,3.8317]
[1723858527827,0.12667492,2609.9,2609.8,3.8317]
[1723858528034,2.4099,2609.9,2609.5,3.83206]
[1723858528233,3.172,2609.7,2609.5,3.83206]
[1723858528431,0.12667492,2609.6,2609.5,3.83206]
[1723858530144,3.172,2609.7,2609.6,3.832]
[1723858530352,3.2986874,2609.7,2609.2,2.4253]
[1723858530669,3.172,2609.4,2609.2,3.8325]
[1723858530807,0.1266874,2609.3,2609.2,7.66501]
[1723858531008,0.1266874,2609.3,2609.2,3.8325]
[1723858531608,0.22447859,2609.3,2609.2,3.8325]
[1723858532450,0.09779119,2609.3,2609.2,3.8325]
[1723858532661,0.22449352,2609.3,2609.2,3.8325]
[1723858533465,0.22449352,2609.3,2608.9,2.4253]
[1723858533466,2.4099,2609.2,2608.9,3.83295]
[1723858533763,3.39655349,2609.1,2608.9,3.83295]
[1723858533962,0.12670233,2609.0,2608.7,3.83321]
[1723858534162,0.12670233,2609.0,2608.5,6.25884]
[1723858534163,3.172,2608.8,2608.5,3.83352]
[1723858534461,0.1267349,2608.7,2608.5,3.83352]
[1723858534647,0.0977842,2608.7,2608.6,7.66683]
[1723858534969,3.172,2609.1,2608.9,3.8329]
[1723858535457,0.12672198,2609.0,2608.9,3.8329]
[1723858535861,0.12672198,2609.0,2608.7,3.83319]
[1723858536063,0.12672198,2608.9,2608.7,3.83319]
[1723858536267,3.80019,2609.1,2608.7,3.83319]
[1723858536559,0.81773675,2609.0,2608.7,3.83319]
[1723858536760,0.12672775,2608.9,2608.7,3.83319]
[1723858537069,0.22462247,2608.9,2608.7,3.83319]
[1723858537224,0.09789472,2608.9,2608.7,3.83319]
[1723858537924,0.12673151,2608.8,2608.7,3.83319]
[1723858538153,0.09779073,2608.8,2608.7,3.83319]
[1723858538334,0.691009,2609.0,2608.7,3.83319]
[1723858538664,0.67371463,2608.9,2608.5,3.83354]
[1723858538822,1.24698352,2608.9,2608.5,3.83353]
[1723858539022,2.4099,2608.8,2608.5,7.66705]
[1723858539224,1.24698352,2608.9,2608.6,3.83339]
[1723858539419,0.09771783,2608.7,2608.6,3.83339]
[1723858539664,0.7,2608.9,2608.6,3.83339]
[1723858539823,2.4099,2609.0,2608.8,3.8331]
[1723858540021,0.7,2609.0,2608.8,3.8331]
[1723858540236,0.7,2609.0,2608.9,3.83303]
[1723858540538,0.82672344,2609.0,2608.9,3.83303]
[1723858541082,0.82672344,2609.0,2608.8,7.6662]
[1723858541252,0.7,2609.0,2608.8,7.6662]
[1723858541452,0.7,2609.0,2608.8,3.8331]
[1723858543399,2.07419,2609.0,2608.7,3.83331]
[1723858543693,0.12673313,2608.9,2608.7,3.83331]
[1723858543889,2.07419,2609.0,2608.7,3.83331]
[1723858544062,0.89234374,2608.9,2608.7,3.83331]
[1723858544263,2.07419,2609.0,2608.7,3.83324]
[1723858544475,2.07419,2609.0,2608.7,3.83323]
[1723858544694,2.07419,2609.0,2608.8,3.83316]
[1723858545005,5.5819,2609.1,2608.8,3.83316]
[1723858545478,0.12672712,2609.0,2608.8,3.83316]
[1723858545798,5.5819,2609.1,2608.8,3.83316]
[1723858546936,0.12672795,2609.0,2608.8,3.83316]
[1723858547099,5.5819,2609.1,2608.8,3.83316]
[1723858547869,0.12672745,2609.0,2608.9,3.83303]
[1723858548071,3.172,2609.1,2609.0,3.83288]
[1723858549203,3.29871809,2609.1,2609.0,3.83288]
[1723858549412,3.172,2609.1,2609.0,3.83288]
[1723858549708,3.2987179,2609.1,2609.0,3.83288]
[1723858553738,3.2987179,2609.1,2608.8,7.66622]
[1723858553888,0.1267179,2609.0,2608.8,7.66622]
[1723858555020,0.1267179,2609.0,2608.9,3.83303]
[1723858555385,3.172,2609.1,2608.9,3.83303]
[1723858555619,0.12671981,2609.0,2608.9,3.83303]
[1723858556007,1.44971981,2609.0,2608.9,3.83303]
[1723858556889,1.44971981,2609.0,2608.8,3.83305]
[1723858557085,0.12671981,2608.9,2608.8,3.83305]
[1723858557889,0.12671981,2608.9,2608.7,3.83324]
[1723858558129,1.44971981,2608.8,2608.7,3.83324]
[1723858559606,0.12671981,2608.8,2608.7,7.66656]
[1723858559797,4.38640472,2609.3,2609.0,3.83286]
[1723858559994,1.323,2609.1,2609.0,3.83286]
[1723858560338,1.4497182,2609.1,2608.8,3.83304]
[1723858560489,1.323,2608.9,2608.8,3.83304]
[1723858560693,1.4497182,2608.9,2608.8,3.83304]
[1723858561795,1.4497182,2608.9,2608.7,3.83329]
[1723858562026,0.1267182,2608.8,2608.7,3.83329]
[1723858562535,1.323,2608.9,2608.7,3.83329]
[1723858562742,0.12672892,2608.8,2608.7,3.83329]
[1723858565339,0.12672892,2608.8,2608.5,3.83355]
[1723858565340,0.12672892,2608.8,2608.5,3.83353]
[1723858565524,1.323,2608.6,2608.5,3.83353]
[1723858565723,1.44972892,2608.6,2608.5,3.83353]
[1723858566715,1.44973362,2608.6,2608.5,3.83353]
[1723858567148,1.44973362,2608.6,2608.5,7.66707]
[1723858567955,1.44973362,2608.6,2608.5,3.83353]
[1723858569649,1.44973362,2608.6,2608.4,3.83376]
[1723858569859,0.12673362,2608.5,2608.4,3.83376]
[1723858570640,1.323,2608.6,2608.5,3.83362]
[1723858570952,1.44973556,2608.6,2608.5,3.83362]
[1723858571377,1.44973736,2608.6,2608.5,3.83362]
[1723858575020,1.44973744,2608.6,2608.5,3.83362]
[1723858575629,1.54739424,2608.6,2608.5,3.83362]
[1723858578953,1.4206568,2608.6,2608.5,3.83362]
[1723858579175,1.54739477,2608.6,2608.5,3.83362]
[1723858580375,1.54739477,2608.6,2608.5,8.433975]
[1723858580591,0.22439477,2608.6,2608.5,15.92948544]
[1723858580913,10.57500206,2609.6,2608.5,15.92948544]
[1723858580914,1.323,2609.5,2609.4,7.66458]
[1723858581050,1.323,2609.5,2609.4,11.49687]
[1723858581051,0.12668074,2609.5,2609.4,11.49687]
[1723858581247,0.08763442,2609.5,2609.4,15.15822728]
[1723858581495,0.08763442,2609.5,2609.4,22.75725228]
[1723858581659,1.323,2609.9,2609.8,7.66342]
[1723858581853,1.60827555,2610.5,2609.8,11.141243]
[1723858581854,6.85892283,2610.5,2609.8,11.141243]
[1723858582187,6.85892283,2610.5,2610.2,3.83112]
[1723858582188,0.12665556,2610.4,2610.2,3.83112]
[1723858582354,0.12665556,2610.3,2610.2,3.83112]
[1723858582553,3.172,2610.5,2610.2,3.83112]
[1723858582554,0.12665556,2610.4,2610.2,3.83112]
[1723858582791,0.20845223,2610.3,2610.2,3.83112]
[1723858583475,0.08179667,2610.3,2610.2,3.83112]
[1723858583677,0.2084532,2610.3,2609.9,3.83152]
[1723858583993,0.12665653,2610.2,2609.9,3.83152]
[1723858584296,3.172,2610.4,2610.0,7.6628]
[1723858584297,0.08165098,2610.1,2610.0,7.6628]
[1723858584666,3.172,2610.4,2610.1,3.83121]
[1723858584995,0.208459,2610.3,2610.1,3.83121]
[1723858585162,0.08179667,2610.3,2610.1,3.83121]
[1723858585369,0.08179667,2610.3,2610.0,3.83139]
[1723858585370,0.08179667,2610.3,2610.2,3.83112]
[1723858585679,0.20845525,2610.3,2610.2,3.83112]
[1723858586494,0.20845525,2610.3,2610.1,3.83126]
[1723858586673,0.08179667,2610.3,2610.1,3.83126]
[1723858587958,0.08179667,2610.3,2609.8,3.83163]
[1723858588293,3.172,2610.1,2609.8,3.83159]
[1723858588458,3.172,2610.1,2609.8,7.66321]
[1723858588796,0.08174104,2610.0,2609.9,3.83147]
[1723858589586,0.08174104,2610.0,2609.8,4.6595135]
[1723858589985,0.08174104,2610.0,2609.8,8.4911235]
[1723858590158,0.08174104,2610.0,2609.9,3.83156]
[1723858590559,0.08174104,2610.0,2609.9,7.66312]
[1723858591807,3.172,2610.1,2609.9,7.66312]
[1723858592112,3.172,2610.1,2610.0,3.83141]
[1723858592569,5.64970766,2610.1,2609.7,3.83178]
[1723858593793,5.64970766,2610.1,2609.7,7.66355]
[1723858593975,5.64970766,2610.1,2609.7,7.66351]
[1723858594206,5.64970766,2610.1,2609.7,3.83175]
[1723858595396,3.172,2609.8,2609.5,3.83213]
[1723858595582,3.172,2609.8,2609.7,3.83185]
[1723858595968,3.172,2609.8,2609.6,3.83199]
[1723858596167,3.172,2609.8,2609.4,3.83221]
[1723858596168,3.172,2609.8,2609.4,7.6644]
[1723858596391,3.172,2609.8,2609.4,3.83219]
[1723858596807,3.172,2609.8,2609.6,3.83199]
[1723858597221,3.172,2609.8,2609.4,7.66435]
[1723858597379,3.172,2609.8,2609.4,3.83216]
[1723858597575,2.3959,2609.7,2609.4,3.83216]
[1723858597988,3.0959,2609.7,2609.2,3.83249]
[1723858598207,3.0959,2609.7,2609.3,3.0]
[1723858598415,2.3959,2609.7,2609.4,3.83229]
[1723858598978,3.172,2609.8,2609.4,3.83229]
[1723858599179,0.08190677,2609.7,2609.5,3.83205]
[1723858599412,3.172,2609.8,2609.5,3.83205]
[1723858601407,3.172,2609.8,2609.6,3.83199]
[1723858602091,3.172,2609.8,2609.4,7.66445]
[1723858602391,3.172,2609.8,2609.5,3.83212]
[1723858602798,0.08189884,2609.7,2609.5,3.83212]
[1723858603006,3.172,2609.8,2609.6,3.832]
[1723858603324,0.08189884,2609.7,2609.6,3.832]
[1723858603695,3.172,2609.8,2609.6,3.832]
[1723858603923,1.40389884,2609.7,2609.6,3.832]
[1723858606719,1.40389884,2609.7,2609.6,8.430414]
[1723858606926,1.40389884,2609.7,2609.6,7.664]
[1723858607135,1.40389884,2609.7,2609.6,3.832]
[1723858608035,1.53058721,2609.7,2609.4,3.8322]
[1723858608194,1.322,2609.5,2609.4,3.8322]
[1723858608404,1.53051698,2609.5,2609.4,3.8322]
[1723858609086,1.40382861,2609.5,2609.4,3.8322]
[1723858609309,1.53052284,2609.5,2609.3,6.83244]
[1723858609499,0.12669423,2609.4,2609.3,6.83244]
[1723858609795,3.0482,2609.8,2609.4,3.83229]
[1723858610019,1.322,2609.5,2609.4,3.83229]
[1723858610224,1.44869601,2609.5,2609.4,3.83229]
[1723858610423,1.53051952,2609.5,2609.4,3.83229]
[1723858611625,1.53051996,2609.5,2609.4,3.83229]
[1723858614728,1.40382351,2609.5,2609.4,3.83229]
[1723858614922,1.53051969,2609.5,2609.3,6.83235]
[1723858615096,0.12669618,2609.4,2609.3,10.6647]
[1723858615491,0.20841475,2609.4,2609.3,10.6647]
[1723858619540,0.20841475,2609.4,2609.3,7.6647]
[1723858619742,0.20842019,2609.4,2609.3,7.6647]
[1723858620157,0.20842019,2609.4,2609.3,3.83235]
[1723858620318,2.49601913,2609.4,2609.1,3.83265]
[1723858620525,0.12670056,2609.3,2609.2,3.83254]
[1723858620723,1.44870056,2609.3,2609.2,3.83254]
[1723858620913,1.53035338,2609.3,2609.2,7.66513]
[1723858621112,1.53035338,2609.3,2608.9,3.83288]
[1723858621446,1.322,2609.0,2608.9,7.66591]
[1723858621645,1.44870056,2609.0,2608.9,7.66591]
[1723858621811,1.53013075,2609.0,2608.9,7.66591]
[1723858622412,1.40343019,2609.0,2608.9,7.66591]
[1723858622632,1.5301469,2609.0,2608.9,7.66591]
[1723858624631,0.2081469,2609.0,2608.9,8.432501]
[1723858624834,1.40343019,2609.0,2608.9,8.432501]
[1723858625031,1.40343019,2609.0,2608.9,11.432501]
[1723858625433,1.322,2609.0,2608.9,11.432501]
[1723858625623,1.4033933,2609.0,2608.9,11.432501]
[1723858625818,1.53009799,2609.0,2608.9,10.66591]
[1723858626638,1.53010147,2609.0,2608.9,10.66591]
[1723858627762,1.53010147,2609.0,2608.7,3.83322]
[1723858627966,1.322,2608.8,2608.7,3.83322]
[1723858628265,1.52996078,2608.8,2608.7,7.66654]
[1723858628469,1.52996078,2608.8,2608.7,10.66654]
[1723858630236,1.52996078,2608.8,2608.7,7.66654]
[1723858630646,1.40325261,2608.8,2608.7,7.66654]
[1723858630969,1.52997633,2608.8,2608.7,7.66654]
[1723858632744,1.52997633,2608.8,2608.5,3.83347]
[1723858632929,1.322,2608.6,2608.5,3.83347]
[1723858633128,1.44872834,2608.6,2608.5,6.83347]
[1723858633344,1.53000437,2608.6,2608.5,6.83347]
[1723858633740,1.53000437,2608.6,2608.3,7.66768]
[1723858633954,1.322,2608.4,2608.3,3.83383]
[1723858634177,1.322,2608.4,2608.3,7.66774]
[1723858634379,1.40325063,2608.4,2608.3,7.66774]
[1723858635831,0.08125063,2608.4,2608.3,7.66774]
[1723858636067,1.322,2608.4,2608.3,8.434514]
[1723858636259,1.40309104,2608.4,2608.3,8.434514]
[1723858636869,1.322,2608.4,2608.3,8.434514]
[1723858637236,1.40309104,2608.4,2608.3,8.434514]
[1723858645258,1.40309104,2608.4,2608.3,7.66774]
[1723858650373,1.04e-06,2608.4,2608.3,20.70096]
[1723858650599,1.322,2609.2,2609.1,7.66546]
[1723858650897,5.75e-06,2609.2,2609.1,3.83273]
[1723858651206,0.07074992,2609.2,2609.1,9.19813]
[1723858651362,0.07074417,2609.2,2609.1,21.916133]
[1723858652313,3.68516575,2610.2,2610.0,3.83131]
[1723858652463,1.44866735,2610.1,2610.0,3.83131]
[1723858652668,1.51748974,2610.1,2610.0,7.66272]
[1723858653409,1.51748974,2610.1,2610.0,3.83131]
[1723858653607,1.51748974,2610.1,2609.8,3.83165]
[1723858653809,1.322,2609.9,2609.8,3.83165]
[1723858654027,1.51734403,2609.9,2609.8,3.83165]
[1723858654335,1.39067668,2609.9,2609.8,3.83165]
[1723858658341,1.39067668,2609.9,2609.5,3.0]
[1723858658342,3.78017668,2609.9,2609.5,3.0]
[1723858658522,2.45817668,2609.9,2609.6,3.83198]
[1723858658699,1.322,2609.7,2609.6,3.83198]
[1723858658899,1.322,2609.7,2609.6,6.83198]
[1723858659092,1.39059979,2609.7,2609.6,6.83198]
[1723858660939,1.39059979,2609.7,2609.6,10.66398]
[1723858661340,1.322,2609.7,2609.6,10.66398]
[1723858661706,1.39059979,2609.7,2609.6,10.66398]
[1723858664695,1.76860977,2609.7,2609.4,3.83221]
[1723858664838,1.322,2609.5,2609.4,7.6645]
[1723858665041,1.38996281,2609.5,2609.4,7.6645]
[1723858665624,1.38996281,2609.5,2609.4,3.83221]
[1723858671632,1.38996281,2609.5,2609.4,7.6645]
[1723858678299,1.51664934,2609.5,2609.4,7.6645]
[1723858679618,1.38996281,2609.5,2609.4,7.6645]
[1723858679819,1.51664982,2609.5,2609.4,7.6645]
[1723858681390,1.51665074,2609.5,2609.4,7.6645]
[1723858683918,3.98045074,2609.5,2609.2,3.83245]
[1723858684138,0.12668793,2609.4,2609.3,6.83235]
[1723858684575,0.19463219,2609.4,2609.3,6.83235]
[1723858686415,0.19463219,2609.4,2608.6,3.83344]
[1723858686416,1.78247541,2609.4,2608.7,3.83329]
[1723858686626,1.78247541,2609.4,2609.0,3.83273]
[1723858686627,2.60760006,2609.3,2609.0,3.83273]
[1723858686792,0.12670006,2609.2,2609.0,3.83273]
[1723858686994,0.12670006,2609.1,2609.0,3.83273]
[1723858687395,0.19442565,2609.1,2609.0,3.83273]
[1723858687999,0.19442565,2609.1,2609.0,6.83273]
[1723858689230,1.51642565,2609.1,2609.0,6.83273]
[1723858690600,1.51643166,2609.1,2609.0,6.83273]
[1723858691091,1.5164316,2609.1,2609.0,6.83273]
[1723858693220,1.5164316,2609.1,2609.0,10.66561]
[1723858693543,1.38972559,2609.1,2609.0,13.673183]
[1723858693895,1.38972559,2609.1,2609.0,17.506063]
[1723858694622,0.06772559,2609.1,2609.0,17.506063]
[1723858695050,1.322,2609.3,2609.2,7.66518]
[1723858695233,1.44868968,2609.3,2609.2,7.66518]
[1723858698057,1.51653098,2609.3,2609.2,7.66518]
[1723858700543,0.0678413,2609.3,2609.2,20.73005733]
[1723858700734,1.322,2609.9,2609.8,7.66342]
[1723858700963,1.44866774,2609.9,2609.8,8.60766931]
[1723858701140,1.5145448,2609.9,2609.8,7.66342]
[1723858701476,0.06587706,2609.9,2609.8,11.49513]
[1723858701774,1.322,2610.1,2610.0,7.66282]
[1723858702084,1.44864983,2610.1,2610.0,10.66282]
[1723858702597,1.322,2610.1,2610.0,10.66282]
[1723858702751,1.44865111,2610.1,2610.0,10.66282]
[1723858703359,1.44865739,2610.1,2610.0,10.66282]
[1723858703969,1.44865739,2610.1,2610.0,6.83141]
[1723858704167,1.44865739,2610.1,2610.0,3.83141]
[1723858704394,1.51234075,2610.1,2610.0,3.83141]
[1723858706504,1.88942483,2610.1,2609.7,3.0]
[1723858706799,0.12667466,2610.0,2609.9,3.83155]
[1723858706956,0.19028055,2610.0,2609.9,3.83155]
[1723858708555,1.51228055,2610.0,2609.9,3.83155]
[1723858710805,1.51227561,2610.0,2609.9,3.83155]
[1723858712000,1.51227561,2610.0,2609.8,3.8317]
[1723858712201,0.12666972,2609.9,2609.7,3.0]
[1723858712407,1.322,2609.8,2609.7,3.0]
[1723858712613,1.44866972,2609.8,2609.7,3.0]
[1723858712827,1.51175882,2609.8,2609.7,3.0]
[1723858713110,1.51175882,2609.8,2609.7,6.83175]
[1723858713493,1.3850891,2609.8,2609.7,10.6636]
[1723858715489,1.3850891,2609.8,2609.7,11.72996]
[1723858716605,0.0630891,2609.8,2609.7,11.72996]
[1723858716778,1.3850891,2609.8,2609.7,11.72996]
[1723858717846,1.322,2609.8,2609.7,11.72996]
[1723858718373,1.38508621,2609.8,2609.7,11.72996]
[1723858719847,1.38508621,2609.8,2609.7,10.6636]
[1723858720051,0.18976017,2609.8,2609.7,10.6636]
[1723858720237,1.38508621,2609.8,2609.7,10.6636]
[1723858722329,1.51175325,2609.8,2609.7,10.6636]
[1723858722836,1.38508621,2609.8,2609.7,10.6636]
[1723858723042,1.51175509,2609.8,2609.7,10.6636]
[1723858723433,0.18975509,2609.8,2609.7,10.6636]
[1723858724173,1.51175509,2609.8,2609.7,10.6636]
[1723858724841,1.51175509,2609.8,2609.7,6.83175]
[1723858725035,3.81435509,2609.8,2609.7,6.83175]
[1723858725839,1.51175509,2609.8,2609.7,6.83175]
[1723858726829,1.51175632,2609.8,2609.7,10.6636]
[1723858727055,1.51175632,2609.8,2609.7,6.83175]
[1723858727340,1.38508621,2609.8,2609.7,6.83175]
[1723858727656,1.51175804,2609.8,2609.7,6.83175]
[1723858729546,1.51175804,2609.8,2609.7,10.6636]
[1723858729750,1.51175804,2609.8,2609.7,6.83175]
[1723858730063,1.51175804,2609.8,2609.7,10.6636]
[1723858731045,1.51175642,2609.8,2609.7,6.83175]
[1723858732288,1.51175642,2609.8,2609.7,3.83175]
[1723858734680,1.51175642,2609.8,2609.7,7.6636]
[1723858735049,1.51175853,2609.8,2609.7,7.6636]
[1723858737881,1.51175853,2609.8,2609.7,3.83175]
[1723858738892,0.18975853,2609.8,2609.7,3.83175]
[1723858739197,1.51175853,2609.8,2609.7,3.83175]
[1723858739694,1.38508621,2609.8,2609.7,7.6636]
[1723858739930,1.51175892,2609.8,2609.7,7.6636]
[1723858740055,1.51175892,2609.8,2609.7,3.83175]
[1723858740456,0.18975892,2609.8,2609.7,8.429965]
[1723858740684,0.18975892,2609.8,2609.7,10.6636]
[1723858742010,0.06308621,2609.8,2609.7,10.6636]
[1723858742301,1.51174703,2609.8,2609.7,10.6636]
[1723858742452,1.44866082,2609.8,2609.7,11.99656612]
[1723858742649,0.12666082,2609.8,2609.7,10.6636]
[1723858745827,1.50949612,2609.8,2609.7,10.6636]
[1723858746004,1.3828353,2609.8,2609.7,10.6636]
[1723858746314,1.50950464,2609.8,2609.7,10.6636]
[1723858748209,3.91660464,2609.8,2609.7,10.6636]
[1723858749347,3.91660464,2609.8,2609.7,6.83175]
[1723858750019,3.7899353,2609.8,2609.7,6.83175]
[1723858750222,3.91661022,2609.8,2609.7,6.83175]
[1723858752644,1.50951022,2609.8,2609.7,10.6636]
[1723858753476,1.50950867,2609.8,2609.7,10.6636]
[1723858753835,1.50950867,2609.8,2609.7,3.83175]
[1723858756377,1.50950867,2609.8,2609.6,3.83199]
[1723858756685,2.48347337,2609.7,2609.2,3.83247]
[1723858756839,2.3568,2609.5,2609.3,3.83236]
[1723858757040,1.44867337,2609.4,2609.3,3.83236]
[1723858757268,1.50921212,2609.4,2609.3,3.83236]
[1723858757438,1.50921212,2609.4,2609.3,7.6648]
[1723858757639,1.50921212,2609.4,2609.3,10.14772013]
[1723858757848,1.50921212,2609.4,2609.3,8.814532]
[1723858758064,1.38253875,2609.4,2609.3,8.814532]
[1723858758337,1.50922376,2609.4,2609.3,8.814532]
[1723858758567,1.50922376,2609.4,2609.3,13.14772016]
[1723858758789,0.18722376,2609.4,2609.3,11.814532]
[1723858759042,0.18722376,2609.4,2609.3,13.14773466]
[1723858759237,1.50922376,2609.4,2609.3,13.14773466]
[1723858759442,1.50922376,2609.4,2609.3,11.814532]
[1723858760297,1.50922376,2609.4,2609.3,10.6648]
[1723858761674,1.50922376,2609.4,2609.3,20.11728237]
[1723858761675,0.06053875,2609.4,2609.3,20.11728237]
[1723858761877,0.06053875,2609.4,2609.3,20.537863]
[1723858762181,1.322,2609.8,2609.7,7.6637]
[1723858762501,1.44866322,2609.8,2609.7,7.6637]
[1723858762723,1.44866323,2609.8,2609.7,7.6637]
[1723858763809,1.44866582,2609.8,2609.7,7.6637]
[1723858765717,1.50954215,2609.8,2609.7,7.6637]
[1723858766030,1.38287633,2609.8,2609.7,7.6637]
[1723858766230,1.50954042,2609.8,2609.7,7.6637]
[1723858767166,1.50954042,2609.8,2609.7,8.813284]
[1723858767367,1.50954042,2609.8,2609.3,10.3187583]
[1723858767368,2.2749,2609.7,2609.5,3.832]
[1723858767591,1.44866409,2609.6,2609.5,3.832]
[1723858769264,1.50935324,2609.6,2609.5,3.832]
[1723858771426,0.18735324,2609.6,2609.5,7.66415]
[1723858771628,1.50935324,2609.6,2609.5,8.730565]
[1723858774263,1.5093665,2609.6,2609.5,8.730565]
[1723858774781,1.5093663,2609.6,2609.5,8.730565]
[1723858775126,1.5093663,2609.6,2609.5,7.66415]
[1723858777958,3.7790663,2609.6,2609.5,7.66415]
[1723858778415,3.65238915,2609.6,2609.5,7.66415]
[1723858778704,1.50937006,2609.6,2609.5,7.66415]
[1723858779512,1.50937006,2609.6,2609.5,3.832]
[1723858779874,3.77907006,2609.6,2609.3,6.83231]
[1723858780069,1.322,2609.4,2609.3,6.83231]
[1723858780297,1.44868091,2609.4,2609.3,6.83231]
[1723858780497,1.50920233,2609.4,2609.3,6.83231]
[1723858782715,1.50920862,2609.4,2609.3,6.83231]
[1723858782919,0.18720862,2609.4,2609.3,6.83231]
[1723858783082,1.50920862,2609.4,2609.3,6.83231]
[1723858783281,4.15679948,2609.4,2609.0,3.83279]
[1723858783520,3.5917,2609.1,2608.8,7.66612]
[1723858783817,1.322,2608.9,2608.8,3.83306]
[1723858784022,1.4486872,2608.9,2608.7,3.83331]
[1723858784230,0.1266872,2608.8,2608.7,3.83331]
[1723858784375,0.1266872,2608.8,2608.5,3.83352]
[1723858784376,0.18672607,2608.8,2608.5,3.83352]
[1723858784578,1.4486872,2608.7,2608.6,7.66692]
[1723858784825,1.50865314,2608.7,2608.6,7.66692]
[1723858785182,4.44632219,2609.8,2609.1,2.2807]
[1723858785349,4.44632219,2609.8,2609.2,0.22807]
[1723858785350,1.322,2609.4,2609.2,0.22807]
[1723858785490,1.322,2609.4,2609.3,3.83243]
[1723858785690,0.76087633,2609.8,2609.6,3.83191]
[1723858785931,1.322,2609.7,2609.6,3.83191]
[1723858786128,1.37837116,2609.7,2609.6,3.83191]
[1723858787335,0.05637116,2609.7,2609.6,3.83191]
[1723858787505,1.37837116,2609.7,2609.6,3.83191]
[1723858787690,1.322,2609.7,2609.6,3.83191]
[1723858788012,1.37840325,2609.7,2609.6,3.83191]
[1723858791845,1.37840325,2609.7,2609.5,3.83211]
[1723858792058,1.322,2609.6,2609.5,3.83211]
[1723858792347,1.37833038,2609.6,2609.5,3.83211]
[1723858792552,1.37833038,2609.6,2609.4,3.83215]
[1723858792719,2.4356,2609.5,2609.4,3.83215]
[1723858793160,2.4356,2609.5,2609.2,3.83251]
[1723858793161,2.4918575,2609.5,2609.2,7.66496]
[1723858793449,2.4918575,2609.5,2609.3,3.0]